Workbook

Sheet 1
A1: Школа | B1: МБОУ СОШ № 11 | I1: День | J1: 2022-09-05
A3: Прием пищи | B3: Раздел | C3: № рец. | D3: Блюдо | E3: Выход, г | F3: Цена | G3: Калорийность | H3: Белки | I3: Жиры | J3: Углеводы
A4: Завтрак | B4: гор.блюдо | D4: ='[2]Меню младшие 1-4 кл Осень-Зима'!B57 -> Огурцы свежие порционно | E4: ='[2]Меню младшие 1-4 кл Осень-Зима'!C57 -> 60 | G4: ='[2]Меню младшие 1-4 кл Осень-Зима'!G57 -> 7.20 | H4: ='[2]Меню младшие 1-4 кл Осень-Зима'!D57 -> 0.42 | I4: ='[2]Меню младшие 1-4 кл Осень-Зима'!E57 -> 0.06 | J4: ='[2]Меню младшие 1-4 кл Осень-Зима'!F57 -> 1.14
B5: гор.напиток | D5: ='[2]Меню младшие 1-4 кл Осень-Зима'!B58 -> Котлета домашняя из говядины | E5: ='[2]Меню младшие 1-4 кл Осень-Зима'!C58 -> 90 | G5: ='[2]Меню младшие 1-4 кл Осень-Зима'!G58 -> 199.57 | H5: ='[2]Меню младшие 1-4 кл Осень-Зима'!D58 -> 10.15 | I5: ='[2]Меню младшие 1-4 кл Осень-Зима'!E58 -> 13.79 | J5: ='[2]Меню младшие 1-4 кл Осень-Зима'!F58 -> 8.10
B6: хлеб | D6: ='[2]Меню младшие 1-4 кл Осень-Зима'!B59 -> Макаронные изделия отварные с маслом сливочным | E6: ='[2]Меню младшие 1-4 кл Осень-Зима'!C59 -> 150/5 | G6: ='[2]Меню младшие 1-4 кл Осень-Зима'!G59 -> 189.30 | H6: ='[2]Меню младшие 1-4 кл Осень-Зима'!D59 -> 5.12 | I6: ='[2]Меню младшие 1-4 кл Осень-Зима'!E59 -> 4.53 | J6: ='[2]Меню младшие 1-4 кл Осень-Зима'!F59 -> 31.99
D7: ='[2]Меню младшие 1-4 кл Осень-Зима'!B60 -> Компот из сухофруктов | E7: ='[2]Меню младшие 1-4 кл Осень-Зима'!C60 -> 200 | G7: ='[2]Меню младшие 1-4 кл Осень-Зима'!G60 -> 132.80 | H7: ='[2]Меню младшие 1-4 кл Осень-Зима'!D60 -> 0.66 | I7: ='[2]Меню младшие 1-4 кл Осень-Зима'!E60 -> 0.09 | J7: ='[2]Меню младшие 1-4 кл Осень-Зима'!F60 -> 32.01
D8: ='[2]Меню младшие 1-4 кл Осень-Зима'!B61 -> Хлеб пшеничный | E8: ='[2]Меню младшие 1-4 кл Осень-Зима'!C61 -> 30 | G8: ='[2]Меню младшие 1-4 кл Осень-Зима'!G61 -> 70.50 | H8: ='[2]Меню младшие 1-4 кл Осень-Зима'!D61 -> 2.28 | I8: ='[2]Меню младшие 1-4 кл Осень-Зима'!E61 -> 0.24 | J8: ='[2]Меню младшие 1-4 кл Осень-Зима'!F61 -> 14.76
D9: ='[2]Меню младшие 1-4 кл Осень-Зима'!B62 -> Хлеб ржаной | E9: ='[2]Меню младшие 1-4 кл Осень-Зима'!C62 -> 25 | G9: ='[2]Меню младшие 1-4 кл Осень-Зима'!G62 -> 49.50 | H9: ='[2]Меню младшие 1-4 кл Осень-Зима'!D62 -> 1.65 | I9: ='[2]Меню младшие 1-4 кл Осень-Зима'!E62 -> 0.30 | J9: ='[2]Меню младшие 1-4 кл Осень-Зима'!F62 -> 9.90
A10: Завтрак 2 | B10: фрукты | D10: ='[1]Дотация 8,30 руб.'!B12 -> Печенье | E10: ='[1]Дотация 8,30 руб.'!C12 -> 30 | G10: ='[1]Дотация 8,30 руб.'!H12 -> 125.1 | H10: ='[1]Дотация 8,30 руб.'!E12 -> 2.25 | I10: ='[1]Дотация 8,30 руб.'!F12 -> 2.94 | J10: ='[1]Дотация 8,30 руб.'!G12 -> 22.32
D11: ='[1]Дотация 8,30 руб.'!B13 -> Чай с сахаром и лимоном | E11: ='[1]Дотация 8,30 руб.'!C13 -> 185/10/5 | G11: ='[1]Дотация 8,30 руб.'!H13 -> 40.20 | H11: ='[1]Дотация 8,30 руб.'!E13 -> 0.13 | I11: ='[1]Дотация 8,30 руб.'!F13 -> 0.02 | J11: ='[1]Дотация 8,30 руб.'!G13 -> 10.20
A12: Обед
